{"text_format":"1","workbook":"xlsx","n_sheets":2,"sheets":["Sayfa1","Sayfa2"],"not_rendered":{"charts":0,"images":0,"macros":1,"external_links":0,"defined_names":0,"comments":0,"pivot_tables":0},"unopened":[],"bounds":{"document_bytes":16777216,"sheet_cells":100000,"rows_first":2000,"rows_last":500,"rows_between":2000,"halvings":0,"cell_chars":16384,"cell_head_chars":4096},"cells_cut":0,"cells_raw":0,"read":"whole","date_system":"1900"}

{"sheet":"Sayfa1","index":0,"n_rows":754,"n_cols":1,"rows_kept":754,"cut":false,"hidden":false,"merged":[]}
["A.V.O.D. KURUTULMUŞ GIDA VE TARIM ÜRÜNLERİ SANAYİ TİCARET A.Ş."]
["HSY DANIŞMANLIK VE BAĞIMSIZ DENETİM A.Ş."]
["A1 CAPITAL YATIRIM MENKUL DEĞERLER A.Ş."]
["ACISELSAN ACIPAYAM SELÜLOZ SANAYİ VE TİCARET A.Ş."]
["ADEL KALEMCİLİK TİCARET VE SANAYİ A.Ş."]
["ADESE GAYRİMENKUL YATIRIM A.Ş."]
["AFYON ÇİMENTO SANAYİ T.A.Ş."]
["AG ANADOLU GRUBU HOLDİNG A.Ş."]
["AGESA HAYAT VE EMEKLİLİK A.Ş."]
["AK FAKTORİNG A.Ş."]
["HSY DANIŞMANLIK VE BAĞIMSIZ DENETİM A.Ş."]
["AKM, AKMEN"]
["AK YATIRIM MENKUL DEĞERLER A.Ş."]
["AKBANK T.A.Ş."]
["AKÇANSA ÇİMENTO SANAYİ VE TİCARET A.Ş."]
["AKDENİZ FAKTORİNG A.Ş."]
["HSY DANIŞMANLIK VE BAĞIMSIZ DENETİM A.Ş."]
["AKDENİZ YATIRIM HOLDİNG A.Ş."]
["AKENERJİ ELEKTRİK ÜRETİM A.Ş."]
["AKFEN GAYRİMENKUL YATIRIM ORTAKLIĞI A.Ş."]
["AKFEN HOLDİNG A.Ş."]
["AKIN TEKSTİL A.Ş."]
["MGI BAĞIMSIZ DENETİM A.Ş."]
["AKİŞ GAYRİMENKUL YATIRIM ORTAKLIĞI A.Ş."]
["AKMERKEZ GAYRİMENKUL YATIRIM ORTAKLIĞI A.Ş."]
["AKSA AKRİLİK KİMYA SANAYİİ A.Ş."]
["AKSA ENERJİ ÜRETİM A.Ş."]
["AKSİGORTA A.Ş."]
["AKSU ENERJİ VE TİCARET A.Ş."]
["FİNANSAL EKSEN BAĞIMSIZ DENETİM VE DANIŞMANLIK A.Ş."]
["AKTİF BANK SUKUK VARLIK KİRALAMA A.Ş."]
["SGD BAĞIMSIZ DENETİM HİZMETLERİ A.Ş."]
["AFB, AKTIF"]
["AKTİF YATIRIM BANKASI A.Ş."]
["ALARKO CARRIER SANAYİ VE TİCARET A.Ş."]
["BDO DENET BAĞIMSIZ DENETİM VE DANIŞMANLIK A.Ş."]
["ALARKO GAYRİMENKUL YATIRIM ORTAKLIĞI A.Ş."]
["ALARKO HOLDİNG A.Ş."]
["BDO DENET BAĞIMSIZ DENETİM VE DANIŞMANLIK A.Ş."]
["ALBRK, ALK"]
["ALBARAKA TÜRK KATILIM BANKASI A.Ş."]
["ALCATEL LUCENT TELETAŞ TELEKOMÜNİKASYON A.Ş."]
["ALJ FİNANSMAN A.Ş."]
["ALKİM ALKALİ KİMYA A.Ş."]
["ALKİM KAĞIT SANAYİ VE TİCARET A.Ş."]
["ALNUS, ANC"]
["ALNUS YATIRIM MENKUL DEĞERLER A.Ş."]
["ALNTF, ANF"]
["ALTERNATİFBANK A.Ş."]
["ALTIN YUNUS ÇEŞME TURİSTİK TESİSLER A.Ş."]
["ALTINYAĞ MADENCİLİK VE ENERJİ YATIRIMLARI SANAYİ VE TİCARET A.Ş."]
["ARKAN ERGİN ULUSLARARASI BAĞIMSIZ DENETİM A.Ş."]
["ANADOLU ANONİM TÜRK SİGORTA ŞİRKETİ"]
["ANADOLU EFES BİRACILIK VE MALT SANAYİİ A.Ş."]
["ANADOLU HAYAT EMEKLİLİK A.Ş."]
["ANADOLU ISUZU OTOMOTİV SANAYİ VE TİCARET A.Ş."]
["ANEL ELEKTRİK PROJE TAAHHÜT VE TİCARET A.Ş."]
["ARÇELİK A.Ş."]
["ARD GRUP BİLİŞİM TEKNOLOJİLERİ A.Ş."]
["EREN BAĞIMSIZ DENETİM A.Ş."]
["ARENA BİLGİSAYAR SANAYİ VE TİCARET A.Ş."]
["ARENA FAKTORİNG A.Ş"]
["ARMADA BİLGİSAYAR SİSTEMLERİ SANAYİ VE TİCARET A.Ş."]
["ARSAN TEKSTİL TİCARET VE SANAYİ A.Ş."]
["GÜNCEL BAĞIMSIZ DENETİM DANIŞMANLIK VE YMM A.Ş."]
["ARZUM ELEKTRİKLİ EV ALETLERİ SANAYİ VE TİCARET A.Ş."]
["ASELSAN ELEKTRONİK SANAYİ VE TİCARET A.Ş."]
["ATA GAYRİMENKUL YATIRIM ORTAKLIĞI A.Ş."]
["ATAKULE GAYRİMENKUL YATIRIM ORTAKLIĞI A.Ş."]
["EREN BAĞIMSIZ DENETİM A.Ş."]
["ATILIM FAKTORİNG A.Ş."]
["CONSULTA BAĞIMSIZ DENETİM VE Y.M.M. A.Ş."]
["ATLANTİS YATIRIM HOLDİNG A.Ş."]
["SER-BERKER BAĞIMSIZ DENETİM A.Ş."]
["ATLAS MENKUL KIYMETLER YATIRIM ORTAKLIĞI A.Ş."]
["REFORM BAĞIMSIZ DENETİM A.Ş."]
["ATP TİCARİ BİLGİSAYAR AĞI VE ELEKTRİK GÜÇ KAYNAKLARI ÜRETİM PAZARLAMA VE TİCARET A.Ş."]
["AVRASYA GAYRİMENKUL YATIRIM ORTAKLIĞI A.Ş."]
["REFORM BAĞIMSIZ DENETİM A.Ş."]
["AVRASYA PETROL VE TURİSTİK TESİSLER YATIRIMLAR A.Ş."]
["REFORM BAĞIMSIZ DENETİM A.Ş."]
["AVRUPA YATIRIM HOLDİNG A.Ş."]
["AYDEM YENİLENEBİLİR ENERJİ A.Ş."]
["AYEN ENERJİ A.Ş."]
["AYES ÇELİK HASIR VE ÇİT SANAYİ A.Ş."]
["VİZYON GRUP BAĞIMSIZ DENETİM.A.Ş."]
["AYGAZ A.Ş."]
["Şirket Unvanı"]
["Bağımsız Denetim Kuruluşu"]
["BAGFAŞ BANDIRMA GÜBRE FABRİKALARI A.Ş."]
["AREN BAĞIMSIZ DENETİM VE SMMM A.Ş."]
["BAK AMBALAJ SANAYİ VE TİCARET A.Ş."]
["BALATACILAR BALATACILIK SANAYİ VE TİCARET A.Ş."]
["MEGA GLOBAL ULUSLARARASI BAĞIMSIZ DENETİM A.Ş."]
["BANTAŞ BANDIRMA AMBALAJ SANAYİ TİCARET A.Ş."]
["ULUSLARARASI BAĞIMSIZ DENETİM A.Ş."]
["BANVİT BANDIRMA VİTAMİNLİ YEM SANAYİİ A.Ş."]
["BAŞKENT DOĞALGAZ DAĞITIM GAYRİMENKUL YATIRIM ORTAKLIĞI A.Ş."]
["BAŞTAŞ BAŞKENT ÇİMENTO SANAYİ VE TİCARET A.Ş."]
["BATIÇİM BATI ANADOLU ÇİMENTO SANAYİİ A.Ş."]
["BATISÖKE SÖKE ÇİMENTO SANAYİİ T.A.Ş."]
["BAYRAK EBT TABAN SANAYİ VE TİCARET A.Ş."]
["BERA HOLDİNG A.Ş."]
["EREN BAĞIMSIZ DENETİM A.Ş."]
["BEREKET VARLIK KİRALAMA A.Ş."]
["BERKOSAN YALITIM VE TECRİT MADDELERİ ÜRETİM VE TİCARET A.Ş."]
["BİRLEŞİK EKOL BAĞIMSIZ DENETİM A.Ş."]
["BEŞİKTAŞ FUTBOL YATIRIMLARI SANAYİ VE TİCARET A.Ş."]
["ARKAN ERGİN ULUSLARARASI BAĞIMSIZ DENETİM A.Ş."]
["BEYAZ FİLO OTO KİRALAMA A.Ş."]
["KARAR BAĞIMSIZ DENETİM VE DANIŞMANLIK A.Ş."]
["BİLİCİ YATIRIM SANAYİ VE TİCARET A.Ş."]
["LİSANS BAĞIMSIZ DENETİM VE DANIŞMANLIK A.Ş."]
["BİM BİRLEŞİK MAĞAZALAR A.Ş."]
["BİOTREND ÇEVRE VE ENERJİ YATIRIMLARI A.Ş."]
["ARKAN ERGİN ULUSLARARASI BAĞIMSIZ DENETİM A.Ş."]
["BİRİKİM VARLIK YÖNETİM A.Ş."]
["HSY DANIŞMANLIK VE BAĞIMSIZ DENETİM A.Ş."]
["BİRKO BİRLEŞİK KOYUNLULULAR MENSUCAT TİCARET VE SANAYİ A.Ş."]
["BİRLİK MENSUCAT TİCARET VE SANAYİ İŞLETMESİ A.Ş."]
["ATA ULUSLARARASI BAĞIMSIZ DENETİM VE SMMM A.Ş."]
["BİZİM TOPTAN SATIŞ MAĞAZALARI A.Ş."]
["BMS ÇELİK HASIR SANAYİ VE TİCARET A.Ş."]
["ATA ULUSLARARASI BAĞIMSIZ DENETİM VE SMMM A.Ş."]
["BNP PARİBAS FİNANSAL KİRALAMA A.Ş."]
["BOĞAZİÇİ BETON SANAYİ VE TİCARET A.Ş."]
["AREN BAĞIMSIZ DENETİM VE SMMM A.Ş."]
["BOĞAZİÇİ VARLIK YÖNETİM A.Ş."]
["BORUSAN MANNESMANN BORU SANAYİ VE TİCARET A.Ş."]
["BORUSAN YATIRIM VE PAZARLAMA A.Ş."]
["BOSCH FREN SİSTEMLERİ SANAYİ VE TİCARET A.Ş."]
["BOSSA TİCARET VE SANAYİ İŞLETMELERİ T.A.Ş."]
["BRİSA BRIDGESTONE SABANCI LASTİK SANAYİ VE TİCARET A.Ş."]
["BURÇELİK BURSA ÇELİK DÖKÜM SANAYİİ A.Ş."]
["SER-BERKER BAĞIMSIZ DENETİM A.Ş."]
["BURÇELİK VANA SANAYİ VE TİCARET A.Ş."]
["SER-BERKER BAĞIMSIZ DENETİM A.Ş."]
["BURSA ÇİMENTO FABRİKASI A.Ş."]
["ARKAN ERGİN ULUSLARARASI BAĞIMSIZ DENETİM A.Ş."]
["Şirket Unvanı"]
["Bağımsız Denetim Kuruluşu"]
["CARREFOURSA CARREFOUR SABANCI TİCARET MERKEZİ A.Ş."]
["CASA EMTİA PETROL KİMYEVİ VE TÜREVLERİ SANAYİ TİCARET A.Ş."]
["CEO EVENT MEDYA A.Ş."]
["VİZYON GRUP BAĞIMSIZ DENETİM.A.Ş."]
["COCA-COLA İÇECEK A.Ş."]
["COSMOS YATIRIM HOLDİNG A.Ş."]
["HSY DANIŞMANLIK VE BAĞIMSIZ DENETİM A.Ş."]
["CREDITWEST FAKTORİNG A.Ş."]
["HSY DANIŞMANLIK VE BAĞIMSIZ DENETİM A.Ş."]
["Şirket Unvanı"]
["Bağımsız Denetim Kuruluşu"]
["ÇAĞDAŞ FAKTORİNG A.Ş."]
["ÇALIK DENİM TEKSTİL SANAYİ VE TİCARET A.Ş."]
["ÇAN2 TERMİK A.Ş."]
["EREN BAĞIMSIZ DENETİM A.Ş."]
["ÇELEBİ HAVA SERVİSİ A.Ş."]
["ÇELİK HALAT VE TEL SANAYİİ A.Ş."]
["ÇEMAŞ DÖKÜM SANAYİ A.Ş."]
["ARKAN ERGİN ULUSLARARASI BAĞIMSIZ DENETİM A.Ş."]
["ÇEMTAŞ ÇELİK MAKİNA SANAYİ VE TİCARET A.Ş."]
["ARKAN ERGİN ULUSLARARASI BAĞIMSIZ DENETİM A.Ş."]
["ÇİMBETON HAZIRBETON VE PREFABRİK YAPI ELEMANLARI SANAYİ VE TİCARET A.Ş."]
["ÇİMENTAŞ İZMİR ÇİMENTO FABRİKASI T.A.Ş."]
["ÇİMSA ÇİMENTO SANAYİ VE TİCARET A.Ş."]
["ÇUHADAROĞLU METAL SANAYİ VE PAZARLAMA A.Ş."]
["KARDEN PARTNERS BAĞIMSIZ DENETİM VE SMMM A.Ş."]
["Şirket Unvanı"]
["Bağımsız Denetim Kuruluşu"]
["DAGİ GİYİM SANAYİ VE TİCARET A.Ş."]
["DAGİ YATIRIM HOLDİNG A.Ş."]
["DARDANEL ÖNENTAŞ GIDA SANAYİ A.Ş."]
["DATAGATE BİLGİSAYAR MALZEMELERİ TİCARET A.Ş."]
["DEMİSAŞ DÖKÜM EMAYE MAMÜLLERİ SANAYİ A.Ş."]
["DENGE YATIRIM HOLDİNG A.Ş."]
["SER-BERKER BAĞIMSIZ DENETİM A.Ş."]
["DENİZ FAKTORİNG A.Ş."]
["DENİZ FİNANSAL KİRALAMA A.Ş."]
["DENİZ GAYRİMENKUL YATIRIM ORTAKLIĞI A.Ş."]
["DZY, DZYMK"]
["DENİZ YATIRIM MENKUL KIYMETLER A.Ş."]
["DENIZ, DNZ"]
["DENİZBANK A.Ş."]
["DERİMOD KONFEKSİYON AYAKKABI DERİ SANAYİ VE TİCARET A.Ş."]
["DERLÜKS YATIRIM HOLDİNG A.Ş."]
["ARKAN ERGİN ULUSLARARASI BAĞIMSIZ DENETİM A.Ş."]
["DESA DERİ SANAYİ VE TİCARET A.Ş."]
["BİRLEŞİM BAĞIMSIZ DENETİM VE YMM A.Ş."]
["DESPEC BİLGİSAYAR PAZARLAMA VE TİCARET A.Ş."]
["DEVA HOLDİNG A.Ş."]
["DEVİR FAKTORİNG A.Ş."]
["İDA BAĞIMSIZ DENETİM A.Ş."]
["DİNAMİK ISI MAKİNA YALITIM MALZEMELERİ SANAYİ VE TİCARET A.Ş."]
["HSY DANIŞMANLIK VE BAĞIMSIZ DENETİM A.Ş."]
["DİRİTEKS DİRİLİŞ TEKSTİL SANAYİ VE TİCARET A.Ş."]
["KARAR BAĞIMSIZ DENETİM VE DANIŞMANLIK A.Ş."]
["DİTAŞ DOĞAN YEDEK PARÇA İMALAT VE TEKNİK A.Ş."]
["DO & CO AKTIENGESELLSCHAFT"]
["DOĞAN BURDA DERGİ YAYINCILIK VE PAZARLAMA A.Ş."]
["DOĞAN ŞİRKETLER GRUBU HOLDİNG A.Ş."]
["DOĞTAŞ KELEBEK MOBİLYA SANAYİ VE TİCARET A.Ş."]
["DOĞUSAN BORU SANAYİİ VE TİCARET A.Ş."]
["DOĞUŞ GAYRİMENKUL YATIRIM ORTAKLIĞI A.Ş."]
["DOĞUŞ HOLDİNG A.Ş."]
["DOĞUŞ OTOMOTİV SERVİS VE TİCARET A.Ş."]
["DORUK FAKTORİNG A.Ş."]
["DÖKTAŞ DÖKÜMCÜLÜK TİCARET VE SANAYİ A.Ş."]
["DURAN DOĞAN BASIM VE AMBALAJ SANAYİ A.Ş."]
["DÜNYA VARLIK YÖNETİM A.Ş."]
["DYO BOYA FABRİKALARI SANAYİ VE TİCARET A.Ş."]
["Şirket Unvanı"]
["Bağımsız Denetim Kuruluşu"]
["E-DATA TEKNOLOJİ PAZARLAMA A.Ş."]
["ECZACIBAŞI YATIRIM HOLDİNG ORTAKLIĞI A.Ş."]
["EDİP GAYRİMENKUL YATIRIM SANAYİ VE TİCARET A.Ş."]
["MGI BAĞIMSIZ DENETİM A.Ş."]
["EGE ENDÜSTRİ VE TİCARET A.Ş."]
["EGE GÜBRE SANAYİİ A.Ş."]
["AREN BAĞIMSIZ DENETİM VE SMMM A.Ş."]
["EGE PROFİL TİCARET VE SANAYİ A.Ş."]
["EGE SERAMİK SANAYİ VE TİCARET A.Ş."]
["EGEPLAST EGE PLASTİK TİCARET VE SANAYİ A.Ş."]
["EİS ECZACIBAŞI İLAÇ SINAİ VE FİNANSAL YATIRIMLAR SANAYİ VE TİCARET A.Ş."]
["EKİZ KİMYA SANAYİ VE TİCARET A.Ş."]
["EKO FAKTORİNG A.Ş."]
["EMEK ELEKTRİK ENDÜSTRİSİ A.Ş."]
["KARAR BAĞIMSIZ DENETİM VE DANIŞMANLIK A.Ş."]
["EMİNİŞ AMBALAJ SANAYİ VE TİCARET A.Ş."]
["EMLAK KATILIM VARLIK KİRALAMA A.Ş."]
["EMLAK KONUT GAYRİMENKUL YATIRIM ORTAKLIĞI A.Ş."]
["EMLAK VARLIK KİRALAMA A.Ş."]
["ENERJİSA ENERJİ A.Ş."]
["ENKA İNŞAAT VE SANAYİ A.Ş."]
["ERBOSAN ERCİYAS BORU SANAYİİ VE TİCARET A.Ş."]
["FİNANSAL EKSEN BAĞIMSIZ DENETİM VE DANIŞMANLIK A.Ş."]
["EREĞLİ DEMİR VE ÇELİK FABRİKALARI T.A.Ş."]
["EREĞLİ TEKSTİL TURİZM SANAYİ VE TİCARET A.Ş."]
["AKSİS ULUSLARARASI BAĞIMSIZ DENETİM A.Ş."]
["EROĞLU YAPI İNŞAAT GAYRİMENKUL VE GELİŞTİRME SAN VE TİC.A.Ş."]
["EDİT BAĞIMSIZ DENETİM HİZMETLERİ A.Ş."]
["ERSU MEYVE VE GIDA SANAYİ A.Ş."]
["ESCAR TURİZM TAŞIMACILIK TİCARET A.Ş."]
["ESCORT TEKNOLOJİ YATIRIM A.Ş."]
["HSY DANIŞMANLIK VE BAĞIMSIZ DENETİM A.Ş."]
["ESENBOĞA ELEKTRİK ÜRETİM A.Ş."]
["GÜNCEL BAĞIMSIZ DENETİM DANIŞMANLIK VE YMM A.Ş."]
["ETİLER GIDA VE TİCARİ YATIRIMLAR SANAYİ VE TİCARET A.Ş."]
["ARKAN ERGİN ULUSLARARASI BAĞIMSIZ DENETİM A.Ş."]
["EURO KAPİTAL YATIRIM ORTAKLIĞI A.Ş."]
["BİRLEŞİM BAĞIMSIZ DENETİM VE YMM A.Ş."]
["EURO MENKUL KIYMET YATIRIM ORTAKLIĞI A.Ş."]
["BİRLEŞİM BAĞIMSIZ DENETİM VE YMM A.Ş."]
["EURO TREND YATIRIM ORTAKLIĞI A.Ş."]
["BİRLEŞİM BAĞIMSIZ DENETİM VE YMM A.Ş."]
["EURO YATIRIM HOLDİNG A.Ş."]
["BİRLEŞİM BAĞIMSIZ DENETİM VE YMM A.Ş."]
["Şirket Unvanı"]
["Bağımsız Denetim Kuruluşu"]
["FADE GIDA YATIRIM SANAYİ TİCARET A.Ş."]
["HSY DANIŞMANLIK VE BAĞIMSIZ DENETİM A.Ş."]
["FEDERAL-MOGUL İZMİT PİSTON VE PİM ÜRETİM TESİSLERİ A.Ş."]
["FENERBAHÇE FUTBOL A.Ş."]
["FİBA FAKTORİNG A.Ş."]
["FBB, FBBNK"]
["FİBABANKA A.Ş."]
["FLAP KONGRE TOPLANTI HİZMETLERİ OTOMOTİV VE TURİZM A.Ş."]
["KARAR BAĞIMSIZ DENETİM VE DANIŞMANLIK A.Ş."]
["FONET BİLGİ TEKNOLOJİLERİ A.Ş."]
["EREN BAĞIMSIZ DENETİM A.Ş."]
["FORD OTOMOTİV SANAYİ A.Ş."]
["FORMET ÇELİK KAPI SANAYİ VE TİCARET A.Ş."]
["FRİGO-PAK GIDA MADDELERİ SANAYİ VE TİCARET A.Ş."]
["BDO DENET BAĞIMSIZ DENETİM VE DANIŞMANLIK A.Ş."]
["Şirket Unvanı"]
["Bağımsız Denetim Kuruluşu"]
["GALATA WIND ENERJİ A.Ş."]
["GALATASARAY SPORTİF SINAİ VE TİCARİ YATIRIMLAR A.Ş."]
["GAP İNŞAAT YATIRIM VE DIŞ TİCARET A.Ş."]
["GARANTİ FAKTORİNG A.Ş."]
["GARANTİ YATIRIM ORTAKLIĞI A.Ş."]
["GEDİK YATIRIM MENKUL DEĞERLER A.Ş."]
["ARKAN ERGİN ULUSLARARASI BAĞIMSIZ DENETİM A.Ş."]
["GEDİZ AMBALAJ SANAYİ VE TİCARET A.Ş."]
["GELECEK VARLIK YÖNETİMİ A.Ş."]
["GENTAŞ DEKORATİF YÜZEYLER SANAYİ VE TİCARET A.Ş."]
["BDO DENET BAĞIMSIZ DENETİM VE DANIŞMANLIK A.Ş."]
["GERSAN ELEKTRİK TİCARET VE SANAYİ A.Ş."]
["GLB, GLBMD"]
["GLOBAL MENKUL DEĞERLER A.Ş."]
["CNS BAĞIMSIZ DENETİM ANONİM ŞİRKETİ"]
["GLOBAL YATIRIM HOLDİNG A.Ş."]
["GOODYEAR LASTİKLERİ T.A.Ş."]
["GÖLTAŞ GÖLLER BÖLGESİ ÇİMENTO SANAYİ VE TİCARET A.Ş."]
["GÖZDE GİRİŞİM SERMAYESİ YATIRIM ORTAKLIĞI A.Ş."]
["GSD DENİZCİLİK GAYRİMENKUL İNŞAAT SANAYİ VE TİCARET A.Ş."]
["GSD HOLDİNG A.Ş."]
["GÜBRE FABRİKALARI T.A.Ş."]
["EREN BAĞIMSIZ DENETİM A.Ş."]
["GÜLER YATIRIM HOLDİNG A.Ş."]
["EGE BAĞIMSIZ DENETİM A.Ş."]
["Şirket Unvanı"]
["Bağımsız Denetim Kuruluşu"]
["HACI ÖMER SABANCI HOLDİNG A.Ş."]
["HALK FİNANSAL KİRALAMA A.Ş."]
["HALK GAYRİMENKUL YATIRIM ORTAKLIĞI A.Ş."]
["HALK VARLIK KİRALAMA A.Ş."]
["HATEKS HATAY TEKSTİL İŞLETMELERİ A.Ş."]
["KARAR BAĞIMSIZ DENETİM VE DANIŞMANLIK A.Ş."]
["HEDEF GİRİŞİM SERMAYESİ YATIRIM ORTAKLIĞI A.Ş."]
["HSY DANIŞMANLIK VE BAĞIMSIZ DENETİM A.Ş."]
["HEKTAŞ TİCARET T.A.Ş."]
["HSB, HSBCB"]
["HSBC BANK A.Ş."]
["HUB GİRİŞİM SERMAYESİ YATIRIM ORTAKLIĞI A.Ş."]
["ARKAN ERGİN ULUSLARARASI BAĞIMSIZ DENETİM A.Ş."]
["HUZUR FAKTORİNG A.Ş."]
["HÜRRİYET GAZETECİLİK VE MATBAACILIK A.Ş."]
["VİZYON GRUP BAĞIMSIZ DENETİM.A.Ş."]
["Şirket Unvanı"]
["Bağımsız Denetim Kuruluşu"]
["ICB, ICBCT"]
["ICBC TURKEY BANK A.Ş."]
["INVEO YATIRIM HOLDİNG A.Ş."]
["ARKAN ERGİN ULUSLARARASI BAĞIMSIZ DENETİM A.Ş."]
["IŞIK PLASTİK SANAYİ VE DIŞ TİCARET PAZARLAMA A.Ş."]
["IŞIKLAR ENERJİ VE YAPI HOLDİNG A.Ş."]
["BİRLEŞİK EKOL BAĞIMSIZ DENETİM A.Ş."]
["Şirket Unvanı"]
["Bağımsız Denetim Kuruluşu"]
["İDEALİST DANIŞMANLIK A.Ş."]
["HSY DANIŞMANLIK VE BAĞIMSIZ DENETİM A.Ş."]
["İDEALİST GAYRİMENKUL YATIRIM ORTAKLIĞI A.Ş."]
["KARAR BAĞIMSIZ DENETİM VE DANIŞMANLIK A.Ş."]
["İHLAS EV ALETLERİ İMALAT SANAYİ VE TİCARET A.Ş."]
["İHLAS GAYRİMENKUL PROJE GELİŞTİRME VE TİCARET A.Ş."]
["İHLAS GAZETECİLİK A.Ş."]
["İHLAS HOLDİNG A.Ş."]
["İHLAS YAYIN HOLDİNG A.Ş."]
["İNDEKS BİLGİSAYAR SİSTEMLERİ MÜHENDİSLİK SANAYİ VE TİCARET A.Ş."]
["MGI BAĞIMSIZ DENETİM A.Ş."]
["INFO, IYF"]
["İNFO YATIRIM MENKUL DEĞERLER A.Ş."]
["İNTEMA İNŞAAT VE TESİSAT MALZEMELERİ YATIRIM VE PAZARLAMA A.Ş."]
["İPEK DOĞAL ENERJİ KAYNAKLARI ARAŞTIRMA VE ÜRETİM A.Ş."]
["İSKENDERUN DEMİR VE ÇELİK A.Ş."]
["İŞ FAKTORİNG A.Ş."]
["İŞ FİNANSAL KİRALAMA A.Ş."]
["İŞ GAYRİMENKUL YATIRIM ORTAKLIĞI A.Ş."]
["İŞ GİRİŞİM SERMAYESİ YATIRIM ORTAKLIĞI A.Ş."]
["ISMEN, IYM"]
["İŞ YATIRIM MENKUL DEĞERLER A.Ş."]
["İŞ YATIRIM ORTAKLIĞI A.Ş."]
["İŞBİR HOLDİNG A.Ş."]
["EREN BAĞIMSIZ DENETİM A.Ş."]
["İTTİFAK HOLDİNG A.Ş."]
["İZ HAYVANCILIK TARIM VE GIDA SANAYİ TİCARET A.Ş."]
["SGD BAĞIMSIZ DENETİM HİZMETLERİ A.Ş."]
["İZMİR DEMİR ÇELİK SANAYİ A.Ş."]
["İZMİR FIRÇA SANAYİ VE TİCARET A.Ş."]
["Şirket Unvanı"]
["Bağımsız Denetim Kuruluşu"]
["JANTSA JANT SANAYİ VE TİCARET A.Ş."]
["Şirket Unvanı"]
["Bağımsız Denetim Kuruluşu"]
["KAFEİN YAZILIM HİZMETLERİ TİCARET A.Ş."]
["KAVRAM BAĞIMSIZ DENETİM VE DANIŞMANLIK A.Ş."]
["KALEKİM KİMYEVİ MADDELER SANAYİ VE TİCARET A.Ş."]
["KAPTESTAS001, TRAKAPTEST01"]
["KAP TEST A.Ş."]
["KAP TEST BAĞIMSIZ DENETİM A.Ş."]
["KAPLAMİN AMBALAJ SANAYİ VE TİCARET A.Ş."]
["ARKAN ERGİN ULUSLARARASI BAĞIMSIZ DENETİM A.Ş."]
["KRDMA, KRDMB, KRDMD"]
["KARDEMİR KARABÜK DEMİR ÇELİK SANAYİ VE TİCARET A.Ş."]
["KAREL ELEKTRONİK SANAYİ VE TİCARET A.Ş."]
["BDO DENET BAĞIMSIZ DENETİM VE DANIŞMANLIK A.Ş."]
["aaaaaa"]
["KARSU TEKSTİL SANAYİİ VE TİCARET A.Ş."]
["KARTAL YENİLENEBİLİR ENERJİ ÜRETİM A.Ş."]
["KARTONSAN KARTON SANAYİ VE TİCARET A.Ş."]
["KATMERCİLER ARAÇ ÜSTÜ EKİPMAN SANAYİ VE TİCARET A.Ş."]
["AKSİS ULUSLARARASI BAĞIMSIZ DENETİM A.Ş."]
["KENT FAKTORİNG A.Ş."]
["KENT GIDA MADDELERİ SANAYİİ VE TİCARET A.Ş."]
["KEREVİTAŞ GIDA SANAYİ VE TİCARET A.Ş."]
["KERVAN GIDA SANAYİ VE TİCARET A.Ş."]
["KERVANSARAY YATIRIM HOLDİNG A.Ş."]
["KİLER GAYRİMENKUL YATIRIM ORTAKLIĞI A.Ş."]
["EREN BAĞIMSIZ DENETİM A.Ş."]
["KLİMASAN KLİMA SANAYİ VE TİCARET A.Ş."]
["BDO DENET BAĞIMSIZ DENETİM VE DANIŞMANLIK A.Ş."]
["KOÇ FIAT KREDİ FİNANSMAN A.Ş."]
["KOÇ FİNANSMAN A.Ş."]
["KOÇ HOLDİNG A.Ş."]
["KONFRUT GIDA SANAYİ VE TİCARET A.Ş."]
["KONTROLMATİK TEKNOLOJİ ENERJİ VE MÜHENDİSLİK A.Ş."]
["ABAKÜS BAĞIMSIZ DENETİM A.Ş."]
["KONYA ÇİMENTO SANAYİİ A.Ş."]
["KORAY GAYRİMENKUL YATIRIM ORTAKLIĞI A.Ş."]
["KORDSA TEKNİK TEKSTİL A.Ş."]
["KORTEKS MENSUCAT SANAYİ VE TİCARET A.Ş."]
["KOZA ALTIN İŞLETMELERİ A.Ş."]
["KOZA ANADOLU METAL MADENCİLİK İŞLETMELERİ A.Ş."]
["KÖRFEZ GAYRİMENKUL YATIRIM ORTAKLIĞI A.Ş."]
["KRİSTAL KOLA VE MEŞRUBAT SANAYİ TİCARET A.Ş."]
["ABAKÜS BAĞIMSIZ DENETİM A.Ş."]
["KRON TELEKOMÜNİKASYON HİZMETLERİ A.Ş."]
["KAVRAM BAĞIMSIZ DENETİM VE DANIŞMANLIK A.Ş."]
["KT KİRA SERTİFİKALARI VARLIK KİRALAMA A.Ş."]
["KUŞTUR KUŞADASI TURİZM ENDÜSTRİ A.Ş."]
["SER-BERKER BAĞIMSIZ DENETİM A.Ş."]
["KUYUMCUKENT GAYRİMENKUL YATIRIMLARI A.Ş."]
["AKADEMİK BAĞIMSIZ DENETİM A.Ş."]
["KÜTAHYA PORSELEN SANAYİ A.Ş."]
["KÜTAHYA ŞEKER FABRİKASI A.Ş."]
["Şirket Unvanı"]
["Bağımsız Denetim Kuruluşu"]
["LİDER FAKTORİNG A.Ş."]
["LİNK BİLGİSAYAR SİSTEMLERİ YAZILIMI VE DONANIMI SANAYİ VE TİCARET A.Ş."]
["HSY DANIŞMANLIK VE BAĞIMSIZ DENETİM A.Ş."]
["LOGO YAZILIM SANAYİ VE TİCARET A.Ş."]
["LOKMAN HEKİM ENGÜRÜSAĞ SAĞLIK TURİZM EĞİTİM HİZMETLERİ VE İNŞAAT TAAHHÜT A.Ş."]
["VEZİN BAĞIMSIZ DENETİM A.Ş."]
["LÜKS KADİFE TİCARET VE SANAYİİ A.Ş."]
["Şirket Unvanı"]
["Bağımsız Denetim Kuruluşu"]
["MAKİNA TAKIM ENDÜSTRİSİ A.Ş."]
["MANAS ENERJİ YÖNETİMİ SANAYİ VE TİCARET A.Ş."]
["MARKA YATIRIM HOLDİNG A.Ş."]
["MARMARİS ALTINYUNUS TURİSTİK TESİSLER A.Ş."]
["MARSHALL BOYA VE VERNİK SANAYİİ A.Ş."]
["MARTI GAYRİMENKUL YATIRIM ORTAKLIĞI A.Ş."]
["MARTI OTEL İŞLETMELERİ A.Ş."]
["MATRİKS BİLGİ DAĞITIM HİZMETLERİ A.Ş."]
["MAVİ GİYİM SANAYİ VE TİCARET A.Ş."]
["MAZHAR ZORLU HOLDİNG A.Ş."]
["MEDİTERA TIBBİ MALZEME SANAYİ VE TİCARET A.Ş."]
["HSY DANIŞMANLIK VE BAĞIMSIZ DENETİM A.Ş."]
["MEGA POLİETİLEN KÖPÜK SANAYİ VE TİCARET A.Ş."]
["HSY DANIŞMANLIK VE BAĞIMSIZ DENETİM A.Ş."]
["MENDERES TEKSTİL SANAYİ VE TİCARET A.Ş."]
["ATA ULUSLARARASI BAĞIMSIZ DENETİM VE SMMM A.Ş."]
["MEPET METRO PETROL VE TESİSLERİ SANAYİ TİCARET A.Ş."]
["REFORM BAĞIMSIZ DENETİM A.Ş."]
["MERCAN KİMYA SANAYİ VE TİCARET A.Ş."]
["MERCEDES-BENZ FİNANSMAN TÜRK A.Ş."]
["MERİT TURİZM YATIRIM VE İŞLETME A.Ş."]
["ATA ULUSLARARASI BAĞIMSIZ DENETİM VE SMMM A.Ş."]
["MERKO GIDA SANAYİ VE TİCARET A.Ş."]
["REFORM BAĞIMSIZ DENETİM A.Ş."]
["METEMTUR YATIRIM ENERJİ TURİZM VE İNŞAAT A.Ş."]
["METRO TİCARİ VE MALİ YATIRIMLAR HOLDİNG A.Ş."]
["REFORM BAĞIMSIZ DENETİM A.Ş."]
["METRO YATIRIM ORTAKLIĞI A.Ş."]
["REFORM BAĞIMSIZ DENETİM A.Ş."]
["MİGROS TİCARET A.Ş."]
["MİLPA TİCARİ VE SINAİ ÜRÜNLER PAZARLAMA SANAYİ VE TİCARET A.Ş."]
["MİSTRAL GAYRİMENKUL YATIRIM ORTAKLIĞI A.Ş."]
["MLP SAĞLIK HİZMETLERİ A.Ş."]
["MMC SANAYİ VE TİCARİ YATIRIMLAR A.Ş."]
["BAN-DEN BAĞIMSIZ DENETİM HİZMETLERİ A.Ş."]
["MONDI OLMUKSAN KAĞIT VE AMBALAJ SANAYİ A.Ş."]
["MONDİ TİRE KUTSAN KAĞIT VE AMBALAJ SANAYİ A.Ş."]
["Şirket Unvanı"]
["Bağımsız Denetim Kuruluşu"]
["NATUREL YENİLENEBİLİR ENERJİ TİCARET A.Ş."]
["GÜNCEL BAĞIMSIZ DENETİM DANIŞMANLIK VE YMM A.Ş."]
["NATURELGAZ SANAYİ VE TİCARET A.Ş."]
["NET HOLDİNG A.Ş."]
["ATA ULUSLARARASI BAĞIMSIZ DENETİM VE SMMM A.Ş."]
["NETAŞ TELEKOMÜNİKASYON A.Ş."]
["NİĞBAŞ NİĞDE BETON SANAYİ VE TİCARET A.Ş."]
["ARKAN ERGİN ULUSLARARASI BAĞIMSIZ DENETİM A.Ş."]
["NUH ÇİMENTO SANAYİ A.Ş."]
["NUROL GAYRİMENKUL YATIRIM ORTAKLIĞI A.Ş."]
["NUROL HOLDİNG A.Ş."]
["NUROL VARLIK KİRALAMA A.Ş."]
["NRBNK, NYB"]
["NUROL YATIRIM BANKASI A.Ş."]
["Şirket Unvanı"]
["Bağımsız Denetim Kuruluşu"]
["ODAŞ ELEKTRİK ÜRETİM SANAYİ TİCARET A.Ş."]
["EREN BAĞIMSIZ DENETİM A.Ş."]
["ODB, ODEA"]
["ODEA BANK A.Ş."]
["OPET PETROLCÜLÜK A.Ş."]
["ORFİN FİNANSMAN A.Ş."]
["ORGE ENERJİ ELEKTRİK TAAHHÜT A.Ş."]
["VİZYON GRUP BAĞIMSIZ DENETİM.A.Ş."]
["ORMA ORMAN MAHSULLERİ İNTEGRE SANAYİ VE TİCARET A.Ş."]
["OMD, OSMEN"]
["OSMANLI YATIRIM MENKUL DEĞERLER A.Ş."]
["OSTİM ENDÜSTRİYEL YATIRIMLAR VE İŞLETME A.Ş."]
["VEZİN BAĞIMSIZ DENETİM A.Ş."]
["OTOKAR OTOMOTİV VE SAVUNMA SANAYİ A.Ş."]
["OTOKOÇ OTOMOTİV TİCARET VE SANAYİ A.Ş."]
["OYAK ÇİMENTO FABRİKALARI A.Ş."]
["OYA, OYYAT"]
["OYAK YATIRIM MENKUL DEĞERLER A.Ş."]
["OYAK YATIRIM ORTAKLIĞI A.Ş."]
["OYLUM SINAİ YATIRIMLAR A.Ş."]
["AYK BAĞIMSIZ DIŞ DENETİM VE DANIŞMANLIK A.Ş."]
["Şirket Unvanı"]
["Bağımsız Denetim Kuruluşu"]
["ÖZAK GAYRİMENKUL YATIRIM ORTAKLIĞI A.Ş."]
["ÖZBAL ÇELİK BORU SANAYİ TİCARET VE TAAHHÜT A.Ş."]
["EREN BAĞIMSIZ DENETİM A.Ş."]
["ÖZDERİCİ GAYRİMENKUL YATIRIM ORTAKLIĞI A.Ş."]
["ÖZERDEN PLASTİK SANAYİ VE TİCARET A.Ş."]
["Şirket Unvanı"]
["Bağımsız Denetim Kuruluşu"]
["PALGAZ DOĞALGAZ DAĞITIM TİCARET VE SANAYİ A.Ş."]
["PAMUKOVA YENİLENEBİLİR ELEKTRİK ÜRETİM A.Ş."]
["EREN BAĞIMSIZ DENETİM A.Ş."]
["PANORA GAYRİMENKUL YATIRIM ORTAKLIĞI A.Ş."]
["PAPİLON SAVUNMA-GÜVENLİK SİSTEMLERİ BİLİŞİM MÜHENDİSLİK HİZMETLERİ İTHALAT İHRACAT SANAYİ VE TİCARET A.Ş."]
["PARK ELEKTRİK ÜRETİM MADENCİLİK SANAYİ VE TİCARET A.Ş."]
["PARSAN MAKİNA PARÇALARI SANAYİİ A.Ş."]
["PBT, PBTR"]
["PASHA YATIRIM BANKASI A.Ş."]
["PEGASUS HAVA TAŞIMACILIĞI A.Ş."]
["PEKER GAYRİMENKUL YATIRIM ORTAKLIĞI A.Ş."]
["PENGUEN GIDA SANAYİ A.Ş."]
["PENTA TEKNOLOJİ ÜRÜNLERİ DAĞITIM TİCARET A.Ş."]
["PERA GAYRİMENKUL YATIRIM ORTAKLIĞI A.Ş."]
["PERGAMON STATUS DIŞ TİCARET A.Ş."]
["AREN BAĞIMSIZ DENETİM VE SMMM A.Ş."]
["PETKİM PETROKİMYA HOLDİNG A.Ş."]
["PETROKENT TURİZM A.Ş."]
["C&Ç BAĞIMSIZ DENETİM VE YÖNETİM DANIŞMANLIĞI A.Ş."]
["PHC, PHLLP"]
["PHİLLİPCAPİTAL MENKUL DEĞERLER A.Ş."]
["PINAR ENTEGRE ET VE UN SANAYİİ A.Ş."]
["PINAR SU VE İÇECEK SANAYİ VE TİCARET A.Ş."]
["PINAR SÜT MAMULLERİ SANAYİİ A.Ş."]
["PLASTİKKART AKILLI KART İLETİŞİM SİSTEMLERİ SANAYİ VE TİCARET A.Ş."]
["POLİSAN HOLDİNG A.Ş."]
["POLİTEKNİK METAL SANAYİ VE TİCARET A.Ş."]
["PRİZMA PRES MATBAACILIK YAYINCILIK SANAYİ VE TİCARET A.Ş."]
["FİNANSAL EKSEN BAĞIMSIZ DENETİM VE DANIŞMANLIK A.Ş."]
["Şirket Unvanı"]
["Bağımsız Denetim Kuruluşu"]
["QNB FİNANS FAKTORİNG A.Ş."]
["QNB FİNANS FİNANSAL KİRALAMA A.Ş."]
["FIN, QNBFB"]
["QNB FİNANSBANK A.Ş."]
["QUA GRANITE HAYAL YAPI VE ÜRÜNLERİ SANAYİ TİCARET A.Ş."]
["HLB SAYGIN BAĞIMSIZ DENETİM A.Ş."]
["Şirket Unvanı"]
["Bağımsız Denetim Kuruluşu"]
["RAL YATIRIM HOLDİNG A.Ş."]
["AKADEMİK BAĞIMSIZ DENETİM A.Ş."]
["RAY SİGORTA A.Ş."]
["REYSAŞ GAYRİMENKUL YATIRIM ORTAKLIĞI A.Ş."]
["EREN BAĞIMSIZ DENETİM A.Ş."]
["REYSAŞ TAŞIMACILIK VE LOJİSTİK TİCARET A.Ş."]
["EREN BAĞIMSIZ DENETİM A.Ş."]
["RHEA GİRİŞİM SERMAYESİ YATIRIM ORTAKLIĞI A.Ş."]
["HSY DANIŞMANLIK VE BAĞIMSIZ DENETİM A.Ş."]
["RODRİGO TEKSTİL SANAYİ VE TİCARET A.Ş."]
["ROYAL HALI İPLİK TEKSTİL MOBİLYA SANAYİ VE TİCARET A.Ş."]
["AKADEMİK BAĞIMSIZ DENETİM A.Ş."]
["RTA LABORATUVARLARI BİYOLOJİK ÜRÜNLER İLAÇ VE MAKİNE SANAYİ TİCARET A.Ş."]
["Şirket Unvanı"]
["Bağımsız Denetim Kuruluşu"]
["SAFKAR EGE SOĞUTMACILIK KLİMA SOĞUK HAVA TESİSLERİ İHRACAT İTHALAT SANAYİ VE TİCARET A.Ş."]
["HSY DANIŞMANLIK VE BAĞIMSIZ DENETİM A.Ş."]
["SAN-EL MÜHENDİSLİK ELEKTRİK TAAHHÜT SANAYİ VE TİCARET A.Ş."]
["SANİFOAM SÜNGER SANAYİ VE TİCARET A.Ş."]
["VİZYON GRUP BAĞIMSIZ DENETİM.A.Ş."]
["SANKO PAZARLAMA İTHALAT İHRACAT A.Ş."]
["SARAY MATBAACILIK KAĞITÇILIK KIRTASİYECİLİK TİCARET VE SANAYİ A.Ş."]
["SARKUYSAN ELEKTROLİTİK BAKIR SANAYİ VE TİCARET A.Ş."]
["SARTEN AMBALAJ SANAYİ VE TİCARET A.Ş."]
["SASA POLYESTER SANAYİ A.Ş."]
["SAY YENİLENEBİLİR ENERJİ EKİPMANLARI SANAYİ VE TİCARET A.Ş."]
["SEKURO PLASTİK AMBALAJ SANAYİ A.Ş."]
["SELÇUK ECZA DEPOSU TİCARET VE SANAYİ A.Ş."]
["SELÇUK GIDA ENDÜSTRİ İHRACAT İTHALAT A.Ş."]
["AKT BAĞIMSIZ DENETİM A.Ş."]
["SELVA GIDA SANAYİ A.Ş."]
["SENKRON GÜVENLİK VE İLETİŞİM SİSTEMLERİ A.Ş."]
["SERVE FİLM PRODÜKSİYON EĞLENCE A.Ş."]
["SERVET GAYRİMENKUL YATIRIM ORTAKLIĞI A.Ş."]
["SEYİTLER KİMYA SANAYİ A.Ş."]
["HSY DANIŞMANLIK VE BAĞIMSIZ DENETİM A.Ş."]
["SİLVERLİNE ENDÜSTRİ VE TİCARET A.Ş."]
["SİNPAŞ GAYRİMENKUL YATIRIM ORTAKLIĞI A.Ş."]
["SMARTİKS YAZILIM A.Ş."]
["KAVRAM BAĞIMSIZ DENETİM VE DANIŞMANLIK A.Ş."]
["SODAŞ SODYUM SANAYİİ A.Ş."]
["SÖKTAŞ TEKSTİL SANAYİ VE TİCARET A.Ş."]
["SÖNMEZ FİLAMENT SENTETİK İPLİK VE ELYAF SANAYİ A.Ş."]
["SÖNMEZ PAMUKLU SANAYİİ A.Ş."]
["SUMAŞ SUNİ TAHTA VE MOBİLYA SANAYİ A.Ş."]
["BDD BAĞIMSIZ DENETİM VE DANIŞMANLIK A.Ş."]
["SUZUKİ MOTORLU ARAÇLAR PAZARLAMA A.Ş."]
["SÜMER FAKTORİNG A.Ş."]
["HSY DANIŞMANLIK VE BAĞIMSIZ DENETİM A.Ş."]
["SÜMER VARLIK YÖNETİM A.Ş."]
["Şirket Unvanı"]
["Bağımsız Denetim Kuruluşu"]
["ŞEKER FAKTORİNG A.Ş."]
["ŞEKER FİNANSAL KİRALAMA A.Ş."]
["SKY, SKYMD"]
["ŞEKER YATIRIM MENKUL DEĞERLER A.Ş."]
["SEK, SKBNK"]
["ŞEKERBANK T.A.Ş."]
["ŞOK MARKETLER TİCARET A.Ş."]
["Şirket Unvanı"]
["Bağımsız Denetim Kuruluşu"]
["T.C. TOPLU KONUT İDARESİ BAŞKANLIĞI"]
["TCZ, TCZB"]
["T.C. ZİRAAT BANKASI A.Ş."]
["TAC, TCRYT"]
["TACİRLER YATIRIM MENKUL DEĞERLER A.Ş."]
["TAÇ TARIM ÜRÜNLERİ HAYVANCILIK GIDA SANAYİ VE TİCARET A.Ş."]
["SER-BERKER BAĞIMSIZ DENETİM A.Ş."]
["TAM FİNANS FAKTORİNG A.Ş."]
["TARIM KREDİ HOLDİNG A.Ş."]
["TAT GIDA SANAYİ A.Ş."]
["TAV HAVALİMANLARI HOLDİNG A.Ş."]
["TAZE KURU GIDA SANAYİ VE TİCARET A.Ş."]
["TEB FİNANSMAN A.Ş."]
["TEK-ART İNŞAAT TİCARET TURİZM SANAYİ VE YATIRIMLAR A.Ş."]
["TEKFEN HOLDİNG A.Ş."]
["TEKNOSA İÇ VE DIŞ TİCARET A.Ş."]
["TEMAPOL POLİMER PLASTİK VE İNŞAAT SANAYİ TİCARET A.Ş."]
["GÜNCEL BAĞIMSIZ DENETİM DANIŞMANLIK VE YMM A.Ş."]
["STK, TRMNK"]
["TERA YATIRIM MENKUL DEĞERLER A.Ş."]
["TF VARLIK KİRALAMA A.Ş."]
["TGS DIŞ TİCARET A.Ş."]
["ULUSLARARASI BAĞIMSIZ DENETİM A.Ş."]
["TOFAŞ TÜRK OTOMOBİL FABRİKASI A.Ş."]
["TORUNLAR GAYRİMENKUL YATIRIM ORTAKLIĞI A.Ş."]
["TRABZON LİMAN İŞLETMECİLİĞİ A.Ş."]
["AKSİS ULUSLARARASI BAĞIMSIZ DENETİM A.Ş."]
["TRABZONSPOR SPORTİF YATIRIM VE FUTBOL İŞLETMECİLİĞİ TİCARET A.Ş."]
["TREND GAYRİMENKUL YATIRIM ORTAKLIĞI A.Ş."]
["ARKAN ERGİN ULUSLARARASI BAĞIMSIZ DENETİM A.Ş."]
["TSKB GAYRİMENKUL YATIRIM ORTAKLIĞI A.Ş."]
["TUĞÇELİK ALÜMİNYUM VE METAL MAMÜLLERİ SANAYİ VE TİCARET A.Ş."]
["GÜNCEL BAĞIMSIZ DENETİM DANIŞMANLIK VE YMM A.Ş."]
["TUKAŞ GIDA SANAYİ VE TİCARET A.Ş."]
["TURCAS PETROL A.Ş."]
["TUREKS TURİZM TAŞIMACILIK A.Ş."]
["EREN BAĞIMSIZ DENETİM A.Ş."]
["TURK İLAÇ VE SERUM SANAYİ A.Ş."]
["BAN-DEN BAĞIMSIZ DENETİM HİZMETLERİ A.Ş."]
["TURKCELL FİNANSMAN A.Ş."]
["TURKCELL İLETİŞİM HİZMETLERİ A.Ş."]
["TBA, TRKSH"]
["TURKISH BANK A.Ş."]
["TÜMOSAN MOTOR VE TRAKTÖR SANAYİ A.Ş."]
["AKSİS ULUSLARARASI BAĞIMSIZ DENETİM A.Ş."]
["TÜPRAŞ-TÜRKİYE PETROL RAFİNERİLERİ A.Ş."]
["TEB, TEBNK"]
["TÜRK EKONOMİ BANKASI A.Ş."]
["TÜRK HAVA YOLLARI A.O."]
["TÜRK PRYSMİAN KABLO VE SİSTEMLERİ A.Ş."]
["TÜRK TELEKOMÜNİKASYON A.Ş."]
["TÜRK TRAKTÖR VE ZİRAAT MAKİNELERİ A.Ş."]
["TÜRK TUBORG BİRA VE MALT SANAYİİ A.Ş."]
["TÜRKER PROJE GAYRİMENKUL VE YATIRIM GELİŞTİRME A.Ş."]
["GARAN, TGB"]
["TÜRKİYE GARANTİ BANKASI A.Ş."]
["HALKB, THL"]
["TÜRKİYE HALK BANKASI A.Ş."]
["EXIMB, THR"]
["TÜRKİYE İHRACAT KREDİ BANKASI A.Ş."]
["ISATR, ISBTR, ISCTR, ISKUR, TIB"]
["TÜRKİYE İŞ BANKASI A.Ş."]
["KLN, KLNMA"]
["TÜRKİYE KALKINMA VE YATIRIM BANKASI A.Ş."]
["TSK, TSKB"]
["TÜRKİYE SINAİ KALKINMA BANKASI A.Ş."]
["TÜRKİYE SİGORTA A.Ş."]
["TÜRKİYE ŞİŞE VE CAM FABRİKALARI A.Ş."]
["TVB, VAKBN"]
["TÜRKİYE VAKIFLAR BANKASI T.A.O."]
["Şirket Unvanı"]
["Bağımsız Denetim Kuruluşu"]
["UFUK YATIRIM YÖNETİM VE GAYRİMENKUL A.Ş."]
["ULAŞLAR TURİZM YATIRIMLARI VE DAYANIKLI TÜKETİM MALLARI TİCARET PAZARLAMA A.Ş."]
["DENEYİM BAĞIMSIZ DENETİM VE DANIŞMANLIK A.Ş."]
["ULUSAL FAKTORİNG A.Ş."]
["ULUSOY ELEKTRİK İMALAT TAAHHÜT VE TİCARET A.Ş."]
["ULUSOY UN SANAYİ VE TİCARET A.Ş."]
["FİNANSAL EKSEN BAĞIMSIZ DENETİM VE DANIŞMANLIK A.Ş."]
["UMPAŞ HOLDİNG A.Ş."]
["UŞAK SERAMİK SANAYİ A.Ş."]
["DENEYİM BAĞIMSIZ DENETİM VE DANIŞMANLIK A.Ş."]
["UTOPYA TURİZM İNŞAAT İŞLETMECİLİK TİCARET A.Ş."]
["UZERTAŞ BOYA SANAYİ TİCARET VE YATIRIM A.Ş."]
["EREN BAĞIMSIZ DENETİM A.Ş."]
["Şirket Unvanı"]
["Bağımsız Denetim Kuruluşu"]
["ÜLKER BİSKÜVİ SANAYİ A.Ş."]
["UNLUS, UNS"]
["ÜNLÜ MENKUL DEĞERLER A.Ş."]
["ÜNLÜ YATIRIM HOLDİNG A.Ş."]
["Şirket Unvanı"]
["Bağımsız Denetim Kuruluşu"]
["VAKIF FAKTORİNG A.Ş."]
["VAKIF FİNANSAL KİRALAMA A.Ş."]
["VAKIF GAYRİMENKUL YATIRIM ORTAKLIĞI A.Ş."]
["VAKIF MENKUL KIYMET YATIRIM ORTAKLIĞI A.Ş."]
["VAKIF VARLIK KİRALAMA A.Ş."]
["VAKKO TEKSTİL VE HAZIR GİYİM SANAYİ İŞLETMELERİ A.Ş."]
["VANET GIDA SANAYİ İÇ VE DIŞ TİCARET A.Ş."]
["REFORM BAĞIMSIZ DENETİM A.Ş."]
["VBT YAZILIM A.Ş."]
["KAVRAM BAĞIMSIZ DENETİM VE DANIŞMANLIK A.Ş."]
["VERUSA HOLDİNG A.Ş."]
["VERUSATURK GİRİŞİM SERMAYESİ YATIRIM ORTAKLIĞI A.Ş."]
["VESTEL BEYAZ EŞYA SANAYİ VE TİCARET A.Ş."]
["VESTEL ELEKTRONİK SANAYİ VE TİCARET A.Ş."]
["VİKİNG KAĞIT VE SELÜLOZ A.Ş."]
["VOLKSWAGEN DOĞUŞ FİNANSMAN A.Ş."]
["Şirket Unvanı"]
["Bağımsız Denetim Kuruluşu"]
["YAPI KREDİ FAKTORİNG A.Ş."]
["YKR, YKYAT"]
["YAPI KREDİ YATIRIM MENKUL DEĞERLER A.Ş."]
["YKB, YKBNK"]
["YAPI VE KREDİ BANKASI A.Ş."]
["YAPRAK SÜT VE BESİ ÇİFTLİKLERİ SANAYİ VE TİCARET A.Ş."]
["YATAŞ YATAK VE YORGAN SANAYİ VE TİCARET A.Ş."]
["YAT, YFMEN"]
["YATIRIM FİNANSMAN MENKUL DEĞERLER A.Ş."]
["YATIRIM VARLIK KİRALAMA A.Ş."]
["YAYLA ENERJİ ÜRETİM TURİZM VE İNŞAAT TİCARET A.Ş."]
["DENEYİM BAĞIMSIZ DENETİM VE DANIŞMANLIK A.Ş."]
["YDA İNŞAAT SANAYİ VE TİCARET A.Ş."]
["VEZİN BAĞIMSIZ DENETİM A.Ş."]
["YENİ GİMAT GAYRİMENKUL YATIRIM ORTAKLIĞI A.Ş."]
["YEŞİL GAYRİMENKUL YATIRIM ORTAKLIĞI A.Ş."]
["YEŞİL YAPI ENDÜSTRİSİ A.Ş."]
["YEŞİL YATIRIM HOLDİNG A.Ş."]
["MGI BAĞIMSIZ DENETİM A.Ş."]
["YİBİTAŞ YOZGAT İŞÇİ BİRLİĞİ İNŞAAT MALZEMELERİ TİCARET VE SANAYİ A.Ş."]
["YONGA MOBİLYA SANAYİ VE TİCARET A.Ş."]
["REPORT BAĞIMSIZ DENETİM A.Ş."]
["YÜKSELEN ÇELİK A.Ş."]
["YÜNSA YÜNLÜ SANAYİ VE TİCARET A.Ş."]
["Şirket Unvanı"]
["Bağımsız Denetim Kuruluşu"]
["ZİRAAT GAYRİMENKUL YATIRIM ORTAKLIĞI A.Ş."]
["ZİRAAT KATILIM VARLIK KİRALAMA A.Ş."]
["ZORLU ENERJİ ELEKTRİK ÜRETİM A.Ş."]
["ZORLU FAKTORİNG A.Ş."]
["CONSULTA BAĞIMSIZ DENETİM VE Y.M.M. A.Ş."]
["Word Olarak İndir Excel Olarak İndir "]

{"sheet":"Sayfa2","index":1,"n_rows":101,"n_cols":2,"rows_kept":101,"cut":false,"hidden":false,"merged":[]}
[]
["Afyon Çimento",{"$f":"benzer_kelime_bul(A2,Sayfa1!$A$1:$A$754)","v":"AFYON ÇİMENTO SANAYİ T.A.Ş."}]
["Akbank",{"$f":"benzer_kelime_bul(A3,Sayfa1!$A$1:$A$754)","v":"AKBANK T.A.Ş."}]
["Aksa",{"$f":"benzer_kelime_bul(A4,Sayfa1!$A$1:$A$754)","v":"AKSA AKRİLİK KİMYA SANAYİİ A.Ş."}]
["Aksa Enerji",{"$f":"benzer_kelime_bul(A5,Sayfa1!$A$1:$A$754)","v":"AKSA ENERJİ ÜRETİM A.Ş."}]
["Alarko GMYO",{"$f":"benzer_kelime_bul(A6,Sayfa1!$A$1:$A$754)","v":"ALARKO CARRIER SANAYİ VE TİCARET A.Ş."}]
["Alarko Holding",{"$f":"benzer_kelime_bul(A7,Sayfa1!$A$1:$A$754)","v":"ALARKO HOLDİNG A.Ş."}]
["Albaraka Türk",{"$f":"benzer_kelime_bul(A8,Sayfa1!$A$1:$A$754)","v":"ALBARAKA TÜRK KATILIM BANKASI A.Ş."}]
["Alkim Kimya",{"$f":"benzer_kelime_bul(A9,Sayfa1!$A$1:$A$754)","v":"ALKİM ALKALİ KİMYA A.Ş."}]
["Anadolu Efes",{"$f":"benzer_kelime_bul(A10,Sayfa1!$A$1:$A$754)","v":"ANADOLU EFES BİRACILIK VE MALT SANAYİİ A.Ş."}]
["Arçelik",{"$f":"benzer_kelime_bul(A11,Sayfa1!$A$1:$A$754)","v":"ARÇELİK A.Ş."}]
["Aselsan",{"$f":"benzer_kelime_bul(A12,Sayfa1!$A$1:$A$754)","v":"ASELSAN ELEKTRONİK SANAYİ VE TİCARET A.Ş."}]
["Bera Holding",{"$f":"benzer_kelime_bul(A13,Sayfa1!$A$1:$A$754)","v":"BERA HOLDİNG A.Ş."}]
["Bim Mağazalar",{"$f":"benzer_kelime_bul(A14,Sayfa1!$A$1:$A$754)","v":"BİM BİRLEŞİK MAĞAZALAR A.Ş."}]
["Borusan Mannesmann",{"$f":"benzer_kelime_bul(A15,Sayfa1!$A$1:$A$754)","v":"BORUSAN MANNESMANN BORU SANAYİ VE TİCARET A.Ş."}]
["Borusan Yat. Paz.",{"$f":"benzer_kelime_bul(A16,Sayfa1!$A$1:$A$754)","v":"BORUSAN YATIRIM VE PAZARLAMA A.Ş."}]
["Brisa",{"$f":"benzer_kelime_bul(A17,Sayfa1!$A$1:$A$754)","v":"BRİSA BRIDGESTONE SABANCI LASTİK SANAYİ VE TİCARET A.Ş."}]
["Coca Cola İçecek",{"$f":"benzer_kelime_bul(A18,Sayfa1!$A$1:$A$754)","v":"COCA-COLA İÇECEK A.Ş."}]
["Çemaş Döküm",{"$f":"benzer_kelime_bul(A19,Sayfa1!$A$1:$A$754)","v":"ÇEMAŞ DÖKÜM SANAYİ A.Ş."}]
["Çemtaş",{"$f":"benzer_kelime_bul(A20,Sayfa1!$A$1:$A$754)","v":"ÇEMTAŞ ÇELİK MAKİNA SANAYİ VE TİCARET A.Ş."}]
["Çimsa",{"$f":"benzer_kelime_bul(A21,Sayfa1!$A$1:$A$754)","v":"ÇİMSA ÇİMENTO SANAYİ VE TİCARET A.Ş."}]
["Deva Holding",{"$f":"benzer_kelime_bul(A22,Sayfa1!$A$1:$A$754)","v":"DEVA HOLDİNG A.Ş."}]
["Doğan Holding",{"$f":"benzer_kelime_bul(A23,Sayfa1!$A$1:$A$754)","v":"DOĞAN ŞİRKETLER GRUBU HOLDİNG A.Ş."}]
["Doğuş Otomotiv",{"$f":"benzer_kelime_bul(A24,Sayfa1!$A$1:$A$754)","v":"DOĞUŞ OTOMOTİV SERVİS VE TİCARET A.Ş."}]
["Eczacıbaşı İlaç",{"$f":"benzer_kelime_bul(A25,Sayfa1!$A$1:$A$754)","v":"EİS ECZACIBAŞI İLAÇ SINAİ VE FİNANSAL YATIRIMLAR SANAYİ VE TİCARET A.Ş."}]
["Eczacıbaşı Yatırım",{"$f":"benzer_kelime_bul(A26,Sayfa1!$A$1:$A$754)","v":"ECZACIBAŞI YATIRIM HOLDİNG ORTAKLIĞI A.Ş."}]
["Ege Endüstri",{"$f":"benzer_kelime_bul(A27,Sayfa1!$A$1:$A$754)","v":"EGE ENDÜSTRİ VE TİCARET A.Ş."}]
["Ege Gübre",{"$f":"benzer_kelime_bul(A28,Sayfa1!$A$1:$A$754)","v":"EGE GÜBRE SANAYİİ A.Ş."}]
["Emlak Konut GMYO",{"$f":"benzer_kelime_bul(A29,Sayfa1!$A$1:$A$754)","v":"EMLAK KONUT GAYRİMENKUL YATIRIM ORTAKLIĞI A.Ş."}]
["Enerjisa Enerji",{"$f":"benzer_kelime_bul(A30,Sayfa1!$A$1:$A$754)","v":"ENERJİSA ENERJİ A.Ş."}]
["Enka İnşaat",{"$f":"benzer_kelime_bul(A31,Sayfa1!$A$1:$A$754)","v":"ENKA İNŞAAT VE SANAYİ A.Ş."}]
["Erbosan",{"$f":"benzer_kelime_bul(A32,Sayfa1!$A$1:$A$754)","v":"ERBOSAN ERCİYAS BORU SANAYİİ VE TİCARET A.Ş."}]
["Ereğli Demir Çelik",{"$f":"benzer_kelime_bul(A33,Sayfa1!$A$1:$A$754)","v":"EREĞLİ DEMİR VE ÇELİK FABRİKALARI T.A.Ş."}]
["Esenboğa Elektrik",{"$f":"benzer_kelime_bul(A34,Sayfa1!$A$1:$A$754)","v":"ESENBOĞA ELEKTRİK ÜRETİM A.Ş."}]
["Fenerbahçe Futbol",{"$f":"benzer_kelime_bul(A35,Sayfa1!$A$1:$A$754)","v":"FENERBAHÇE FUTBOL A.Ş."}]
["Ford Otosan",{"$f":"benzer_kelime_bul(A36,Sayfa1!$A$1:$A$754)","v":"FORD OTOMOTİV SANAYİ A.Ş."}]
["Galatasaray Sportif",{"$f":"benzer_kelime_bul(A37,Sayfa1!$A$1:$A$754)","v":"GALATASARAY SPORTİF SINAİ VE TİCARİ YATIRIMLAR A.Ş."}]
["Garanti Bankası",{"$f":"benzer_kelime_bul(A38,Sayfa1!$A$1:$A$754)","v":"TÜRKİYE GARANTİ BANKASI A.Ş."}]
["Global Yat. Holding",{"$f":"benzer_kelime_bul(A39,Sayfa1!$A$1:$A$754)","v":"GLOBAL YATIRIM HOLDİNG A.Ş."}]
["Gözde Girişim",{"$f":"benzer_kelime_bul(A40,Sayfa1!$A$1:$A$754)","v":"GÖZDE GİRİŞİM SERMAYESİ YATIRIM ORTAKLIĞI A.Ş."}]
["Gübre Fabrik.",{"$f":"benzer_kelime_bul(A41,Sayfa1!$A$1:$A$754)","v":"BAGFAŞ BANDIRMA GÜBRE FABRİKALARI A.Ş."}]
["Hedef Girişim",{"$f":"benzer_kelime_bul(A42,Sayfa1!$A$1:$A$754)","v":"HEDEF GİRİŞİM SERMAYESİ YATIRIM ORTAKLIĞI A.Ş."}]
["Hektaş",{"$f":"benzer_kelime_bul(A43,Sayfa1!$A$1:$A$754)","v":"HEKTAŞ TİCARET T.A.Ş."}]
["İhlas Gayrimenkul",{"$f":"benzer_kelime_bul(A44,Sayfa1!$A$1:$A$754)","v":"İHLAS GAYRİMENKUL PROJE GELİŞTİRME VE TİCARET A.Ş."}]
["İhlas Holding",{"$f":"benzer_kelime_bul(A45,Sayfa1!$A$1:$A$754)","v":"İHLAS HOLDİNG A.Ş."}]
["İndeks Bilgisayar",{"$f":"benzer_kelime_bul(A46,Sayfa1!$A$1:$A$754)","v":"İNDEKS BİLGİSAYAR SİSTEMLERİ MÜHENDİSLİK SANAYİ VE TİCARET A.Ş."}]
["İpek Doğal Enerji",{"$f":"benzer_kelime_bul(A47,Sayfa1!$A$1:$A$754)","v":"İPEK DOĞAL ENERJİ KAYNAKLARI ARAŞTIRMA VE ÜRETİM A.Ş."}]
["İş Bankası (C)",{"$f":"benzer_kelime_bul(A48,Sayfa1!$A$1:$A$754)","v":"TÜRKİYE İŞ BANKASI A.Ş."}]
["İş Fin.Kir.",{"$f":"benzer_kelime_bul(A49,Sayfa1!$A$1:$A$754)","v":"İŞ FİNANSAL KİRALAMA A.Ş."}]
["İş GMYO",{"$f":"benzer_kelime_bul(A50,Sayfa1!$A$1:$A$754)","v":"HSY DANIŞMANLIK VE BAĞIMSIZ DENETİM A.Ş."}]
["İş Y. Men. Değ.",{"$f":"benzer_kelime_bul(A51,Sayfa1!$A$1:$A$754)","v":"İŞ YATIRIM MENKUL DEĞERLER A.Ş."}]
["Jantsa Jant Sanayi",{"$f":"benzer_kelime_bul(A52,Sayfa1!$A$1:$A$754)","v":"JANTSA JANT SANAYİ VE TİCARET A.Ş."}]
["Kardemir (D)",{"$f":"benzer_kelime_bul(A53,Sayfa1!$A$1:$A$754)","v":"KARDEMİR KARABÜK DEMİR ÇELİK SANAYİ VE TİCARET A.Ş."}]
["Karsan Otomotiv",{"$f":"benzer_kelime_bul(A54,Sayfa1!$A$1:$A$754)","v":"ANADOLU ISUZU OTOMOTİV SANAYİ VE TİCARET A.Ş."}]
["Kartonsan",{"$f":"benzer_kelime_bul(A55,Sayfa1!$A$1:$A$754)","v":"KARTONSAN KARTON SANAYİ VE TİCARET A.Ş."}]
["Kerevitaş Gıda",{"$f":"benzer_kelime_bul(A56,Sayfa1!$A$1:$A$754)","v":"KEREVİTAŞ GIDA SANAYİ VE TİCARET A.Ş."}]
["Kervan Gıda",{"$f":"benzer_kelime_bul(A57,Sayfa1!$A$1:$A$754)","v":"KERVAN GIDA SANAYİ VE TİCARET A.Ş."}]
["Koç Holding",{"$f":"benzer_kelime_bul(A58,Sayfa1!$A$1:$A$754)","v":"KOÇ HOLDİNG A.Ş."}]
["Konya Çimento",{"$f":"benzer_kelime_bul(A59,Sayfa1!$A$1:$A$754)","v":"KONYA ÇİMENTO SANAYİİ A.Ş."}]
["Kordsa Teknik Tekstil",{"$f":"benzer_kelime_bul(A60,Sayfa1!$A$1:$A$754)","v":"KORDSA TEKNİK TEKSTİL A.Ş."}]
["Koza Altın",{"$f":"benzer_kelime_bul(A61,Sayfa1!$A$1:$A$754)","v":"KOZA ALTIN İŞLETMELERİ A.Ş."}]
["Koza Madencilik",{"$f":"benzer_kelime_bul(A62,Sayfa1!$A$1:$A$754)","v":"KOZA ANADOLU METAL MADENCİLİK İŞLETMELERİ A.Ş."}]
["Logo Yazılım",{"$f":"benzer_kelime_bul(A63,Sayfa1!$A$1:$A$754)","v":"LOGO YAZILIM SANAYİ VE TİCARET A.Ş."}]
["Migros Ticaret",{"$f":"benzer_kelime_bul(A64,Sayfa1!$A$1:$A$754)","v":"MİGROS TİCARET A.Ş."}]
["MLP Sağlık",{"$f":"benzer_kelime_bul(A65,Sayfa1!$A$1:$A$754)","v":"MLP SAĞLIK HİZMETLERİ A.Ş."}]
["Net Holding",{"$f":"benzer_kelime_bul(A66,Sayfa1!$A$1:$A$754)","v":"NET HOLDİNG A.Ş."}]
["Netaş Telekom.",{"$f":"benzer_kelime_bul(A67,Sayfa1!$A$1:$A$754)","v":"NETAŞ TELEKOMÜNİKASYON A.Ş."}]
["Nuh Çimento",{"$f":"benzer_kelime_bul(A68,Sayfa1!$A$1:$A$754)","v":"NUH ÇİMENTO SANAYİ A.Ş."}]
["Odaş Elektrik",{"$f":"benzer_kelime_bul(A69,Sayfa1!$A$1:$A$754)","v":"ODAŞ ELEKTRİK ÜRETİM SANAYİ TİCARET A.Ş."}]
["Otokar",{"$f":"benzer_kelime_bul(A70,Sayfa1!$A$1:$A$754)","v":"OTOKAR OTOMOTİV VE SAVUNMA SANAYİ A.Ş."}]
["Oyak Çimento",{"$f":"benzer_kelime_bul(A71,Sayfa1!$A$1:$A$754)","v":"OYAK ÇİMENTO FABRİKALARI A.Ş."}]
["Parsan",{"$f":"benzer_kelime_bul(A72,Sayfa1!$A$1:$A$754)","v":"PARSAN MAKİNA PARÇALARI SANAYİİ A.Ş."}]
["Pegasus",{"$f":"benzer_kelime_bul(A73,Sayfa1!$A$1:$A$754)","v":"PEGASUS HAVA TAŞIMACILIĞI A.Ş."}]
["Petkim",{"$f":"benzer_kelime_bul(A74,Sayfa1!$A$1:$A$754)","v":"PETKİM PETROKİMYA HOLDİNG A.Ş."}]
["RTA Laboratuvarları",{"$f":"benzer_kelime_bul(A75,Sayfa1!$A$1:$A$754)","v":"RTA LABORATUVARLARI BİYOLOJİK ÜRÜNLER İLAÇ VE MAKİNE SANAYİ TİCARET A.Ş."}]
["Sabancı Holding",{"$f":"benzer_kelime_bul(A76,Sayfa1!$A$1:$A$754)","v":"HACI ÖMER SABANCI HOLDİNG A.Ş."}]
["Sasa Polyester",{"$f":"benzer_kelime_bul(A77,Sayfa1!$A$1:$A$754)","v":"SASA POLYESTER SANAYİ A.Ş."}]
["Selçuk Ecza Deposu",{"$f":"benzer_kelime_bul(A78,Sayfa1!$A$1:$A$754)","v":"SELÇUK ECZA DEPOSU TİCARET VE SANAYİ A.Ş."}]
["Şekerbank",{"$f":"benzer_kelime_bul(A79,Sayfa1!$A$1:$A$754)","v":"ŞEKERBANK T.A.Ş."}]
["Şişe Cam",{"$f":"benzer_kelime_bul(A80,Sayfa1!$A$1:$A$754)","v":"TÜRKİYE ŞİŞE VE CAM FABRİKALARI A.Ş."}]
["Şok Marketler Ticaret",{"$f":"benzer_kelime_bul(A81,Sayfa1!$A$1:$A$754)","v":"ŞOK MARKETLER TİCARET A.Ş."}]
["T. Halk Bankası",{"$f":"benzer_kelime_bul(A82,Sayfa1!$A$1:$A$754)","v":"TÜRKİYE HALK BANKASI A.Ş."}]
["T.S.K.B.",{"$f":"benzer_kelime_bul(A83,Sayfa1!$A$1:$A$754)","v":"HSY DANIŞMANLIK VE BAĞIMSIZ DENETİM A.Ş."}]
["TAV Havalimanları",{"$f":"benzer_kelime_bul(A84,Sayfa1!$A$1:$A$754)","v":"TAV HAVALİMANLARI HOLDİNG A.Ş."}]
["Tekfen Holding",{"$f":"benzer_kelime_bul(A85,Sayfa1!$A$1:$A$754)","v":"TEKFEN HOLDİNG A.Ş."}]
["Teknosa İç ve Dış Ticaret",{"$f":"benzer_kelime_bul(A86,Sayfa1!$A$1:$A$754)","v":"TEKNOSA İÇ VE DIŞ TİCARET A.Ş."}]
["Tofaş Oto. Fab.",{"$f":"benzer_kelime_bul(A87,Sayfa1!$A$1:$A$754)","v":"TOFAŞ TÜRK OTOMOBİL FABRİKASI A.Ş."}]
["Torunlar GMYO",{"$f":"benzer_kelime_bul(A88,Sayfa1!$A$1:$A$754)","v":"TORUNLAR GAYRİMENKUL YATIRIM ORTAKLIĞI A.Ş."}]
["Turkcell",{"$f":"benzer_kelime_bul(A89,Sayfa1!$A$1:$A$754)","v":"TURKCELL FİNANSMAN A.Ş."}]
["Tüpraş",{"$f":"benzer_kelime_bul(A90,Sayfa1!$A$1:$A$754)","v":"TÜPRAŞ-TÜRKİYE PETROL RAFİNERİLERİ A.Ş."}]
["Türk Hava Yolları",{"$f":"benzer_kelime_bul(A91,Sayfa1!$A$1:$A$754)","v":"TÜRK HAVA YOLLARI A.O."}]
["Türk Telekom",{"$f":"benzer_kelime_bul(A92,Sayfa1!$A$1:$A$754)","v":"TÜRK TELEKOMÜNİKASYON A.Ş."}]
["Türk Traktör",{"$f":"benzer_kelime_bul(A93,Sayfa1!$A$1:$A$754)","v":"TÜRK TRAKTÖR VE ZİRAAT MAKİNELERİ A.Ş."}]
["Türkiye Sigorta",{"$f":"benzer_kelime_bul(A94,Sayfa1!$A$1:$A$754)","v":"TÜRKİYE SİGORTA A.Ş."}]
["Ülker Bisküvi",{"$f":"benzer_kelime_bul(A95,Sayfa1!$A$1:$A$754)","v":"ÜLKER BİSKÜVİ SANAYİ A.Ş."}]
["Vakıflar Bankası",{"$f":"benzer_kelime_bul(A96,Sayfa1!$A$1:$A$754)","v":"TÜRKİYE VAKIFLAR BANKASI T.A.O."}]
["Verusa Holding",{"$f":"benzer_kelime_bul(A97,Sayfa1!$A$1:$A$754)","v":"VERUSA HOLDİNG A.Ş."}]
["Vestel",{"$f":"benzer_kelime_bul(A98,Sayfa1!$A$1:$A$754)","v":"VESTEL BEYAZ EŞYA SANAYİ VE TİCARET A.Ş."}]
["Vestel Beyaz Eşya",{"$f":"benzer_kelime_bul(A99,Sayfa1!$A$1:$A$754)","v":"VESTEL BEYAZ EŞYA SANAYİ VE TİCARET A.Ş."}]
["Yapı ve Kredi Bank.",{"$f":"benzer_kelime_bul(A100,Sayfa1!$A$1:$A$754)","v":"YAPI VE KREDİ BANKASI A.Ş."}]
["Zorlu Enerji",{"$f":"benzer_kelime_bul(A101,Sayfa1!$A$1:$A$754)","v":"ZORLU ENERJİ ELEKTRİK ÜRETİM A.Ş."}]